fUSD/lending_fUSD_20240815
["ID","MTS","AMOUNT","RATE_DAILY","PERIOD"]
[335009269,1723741845443,-151.0,0.000138,2]
[335009270,1723741845452,-151.0,0.000138,2]
[335009271,1723741845462,-151.0,0.000138,2]
[335009272,1723741845471,-151.0,0.000138,2]
[335009273,1723741845480,-171.761039,0.000138,2]
[335009274,1723741845490,-223.589713,0.000138,2]
[335009275,1723741845500,-173.632308,0.000138,2]
[335009276,1723741845509,-223.589713,0.000138,2]
[335009277,1723741845522,-173.632308,0.000138,2]
[335009278,1723741845531,-151.0,0.000138,2]
[335009279,1723741845540,-151.0,0.000138,2]
[335009280,1723741845549,-161.844942,0.000138,2]
[335009281,1723741845559,-151.0,0.000138,2]
[335009282,1723741845568,-151.0,0.000138,2]
[335009283,1723741845577,-161.844942,0.000138,2]
[335009284,1723741845587,-255.085014,0.000138,2]
[335009285,1723741845597,-151.0,0.000138,2]
[335009286,1723741845607,-230.488098,0.000138,2]
[335009287,1723741845618,-255.085014,0.000138,2]
[335009288,1723741845628,-155.068947,0.000138,2]
[335009289,1723741845637,-151.0,0.000138,2]
[335009290,1723741845647,-151.0,0.000138,2]
[335009291,1723741845657,-151.0,0.000138,2]
[335009292,1723741845667,-151.0,0.000138,2]
[335009293,1723741845676,-151.0,0.000138,2]
[335009294,1723741845685,-151.0,0.000138,2]
[335009295,1723741845695,-151.0,0.000138,2]
[335009296,1723741845705,-151.0,0.000138,2]
[335009297,1723741845714,-151.0,0.000138,2]
[335009298,1723741845723,-151.0,0.000138,2]
[335009299,1723741845733,-151.0,0.000138,2]
[335009300,1723741845743,-152.914675,0.000138,2]
[335009301,1723741845752,-223.64168,0.000138,2]
[335009302,1723741845763,-223.64168,0.000138,2]
[335009303,1723741845773,-2067.738,0.000138,2]
[335009305,1723741845785,-37580.8767786,0.000138,2]
[335009306,1723741845796,-151.0,0.000138,2]
[335009307,1723741845805,-371.973604,0.000138,2]
[335009308,1723741845814,-151.0,0.000138,2]
[335009309,1723741845823,-371.973604,0.000138,2]
[335009311,1723741845833,-151.0,0.000138,2]
[335009313,1723741845842,-402.271275,0.000138,2]
[335009314,1723741845853,-151.0,0.000138,2]
[335009315,1723741845866,-402.271275,0.000138,2]
[335009316,1723741845876,-151.0,0.000138,2]
[335009317,1723741845885,-256.37459,0.000138,2]
[335009318,1723741845894,-158.324852,0.000138,2]
[335009319,1723741845903,-256.37459,0.000138,2]
[335009320,1723741845912,-516.717667,0.000138,2]
[335009321,1723741845922,-151.0,0.000138,2]
[335009322,1723741845931,-151.0,0.000138,2]
[335009323,1723741845940,-516.717667,0.000138,2]
[335009324,1723741845950,-151.0,0.000138,2]
[335009325,1723741845960,-151.0,0.000138,2]
[335009326,1723741845969,-151.0,0.000138,2]
[335009327,1723741845979,-151.0,0.000138,2]
[335009328,1723741845988,-151.0,0.000138,2]
[335009329,1723741845997,-151.0,0.000138,2]
[335009330,1723741846007,-151.0,0.000138,2]
[335009331,1723741846016,-340.91219285,0.0001385,2]
[335009332,1723741846025,-116153.19381867,0.0001385,3]
[335009333,1723741846035,-151.0,0.0001387,2]
[335009334,1723741846044,-274.314366,0.0001387,2]
[335009335,1723741846054,-274.314366,0.0001387,2]
[335009338,1723741846063,-151.0,0.0001387,2]
[335009340,1723741846072,-151.0,0.0001387,2]
[335009342,1723741846082,-151.0,0.0001387,2]
[335009344,1723741846091,-151.0,0.0001387,2]
[335009347,1723741846100,-151.0,0.0001387,2]
[335009349,1723741846110,-200.0,0.00013873,2]
[335009351,1723741846119,-300.0,0.00013899,2]
[335009352,1723741846129,-300.0,0.00013899,2]
[335009354,1723741846138,-300.0,0.00013899,2]
[335009356,1723741846147,-300.0,0.00013899,2]
[335009357,1723741846157,-300.0,0.00013899,2]
[335009359,1723741846166,-1438.46953182,0.00013899,5]
[335009361,1723741846176,-151.0,0.000139,2]
[335009363,1723741846185,-196.911495,0.000139,2]
[335009364,1723741846194,-151.0,0.000139,2]
[335009365,1723741846203,-151.0,0.000139,2]
[335009366,1723741846213,-151.0,0.000139,2]
[335009367,1723741846222,-151.0,0.000139,2]
[335009369,1723741846232,-151.0,0.000139,2]
[335009370,1723741846241,-254.515709,0.000139,2]
[335009373,1723741846251,-254.515709,0.000139,2]
[335009375,1723741846261,-151.0,0.000139,2]
[335009376,1723741846272,-151.0,0.000139,2]
[335009377,1723741846281,-151.0,0.000139,2]
[335009378,1723741846291,-151.0,0.000139,2]
[335009379,1723741846303,-151.0,0.000139,2]
[335009380,1723741846315,-151.0,0.000139,2]
[335009381,1723741846326,-153.370864,0.000139,2]
[335009382,1723741846338,-151.0,0.000139,2]
[335009383,1723741846348,-151.0,0.000139,2]
[335009384,1723741846358,-151.0,0.000139,2]
[335009385,1723741846369,-204.276609,0.000139,2]
[335009386,1723741846380,-151.0,0.000139,2]
[335009387,1723741846389,-151.0,0.000139,2]
[335009388,1723741846399,-151.0,0.000139,2]
[335009389,1723741846408,-167.901428,0.000139,2]
[335009390,1723741846418,-151.0,0.000139,2]
[335009391,1723741846427,-151.0,0.000139,2]
[335009392,1723741846439,-223.589713,0.000139,2]
[335009393,1723741846448,-173.632308,0.000139,2]
[335009394,1723741846458,-223.589713,0.000139,2]
[335009396,1723741846470,-173.632308,0.000139,2]
[335009398,1723741846480,-151.0,0.000139,2]
[335009400,1723741846490,-151.0,0.000139,2]
[335009402,1723741846501,-161.844942,0.000139,2]
[335009404,1723741846510,-151.0,0.000139,2]
[335009406,1723741846521,-151.0,0.000139,2]
[335009408,1723741846531,-161.844942,0.000139,2]
[335009410,1723741846540,-255.085014,0.000139,2]
[335009412,1723741846550,-151.0,0.000139,2]
[335009415,1723741846559,-255.085014,0.000139,2]
[335009418,1723741846569,-151.0,0.000139,2]
[335009420,1723741846579,-151.0,0.000139,2]
[335009423,1723741846589,-151.0,0.000139,2]
[335009425,1723741846602,-151.0,0.000139,2]
[335009427,1723741846612,-151.0,0.000139,2]
[335009429,1723741846622,-151.0,0.000139,2]
[335009431,1723741846633,-151.0,0.000139,2]
[335009433,1723741846644,-151.0,0.000139,2]
[335009435,1723741846654,-151.0,0.000139,2]
[335009437,1723741846663,-151.0,0.000139,2]
[335009439,1723741846673,-223.64168,0.000139,2]
[335009441,1723741846683,-223.64168,0.000139,2]
[335009443,1723741846694,-2067.738,0.000139,2]
[335009445,1723741846703,-151.0,0.000139,2]
[335009447,1723741846714,-371.973604,0.000139,2]
[335009449,1723741846723,-151.0,0.000139,2]
[335009451,1723741846732,-371.973604,0.000139,2]
[335009453,1723741846741,-402.271275,0.000139,2]
[335009455,1723741846750,-151.0,0.000139,2]
[335009457,1723741846758,-402.271275,0.000139,2]
[335009459,1723741846769,-151.0,0.000139,2]
[335009461,1723741846780,-256.37459,0.000139,2]
[335009463,1723741846792,-256.37459,0.000139,2]
[335009465,1723741846801,-516.717667,0.000139,2]
[335009467,1723741846810,-151.0,0.000139,2]
[335009469,1723741846819,-151.0,0.000139,2]
[335009471,1723741846829,-516.717667,0.000139,2]
[335009473,1723741846838,-151.0,0.000139,2]
[335009475,1723741846849,-151.0,0.000139,2]
[335009477,1723741846860,-151.0,0.000139,2]
[335009479,1723741846870,-151.0,0.000139,2]
[335009481,1723741846879,-2107.13055,0.0001393,2]
[335009483,1723741846888,-150.0,0.00013963,2]
[335009485,1723741846899,-150.11,0.00013973,2]
[335009487,1723741846908,-158.76,0.00013973,2]
[335009489,1723741846918,-250.27,0.00013973,2]
[335009491,1723741846927,-9862.04348015,0.00014,2]
[335009493,1723741846937,-650.0,0.00014,2]
[335009495,1723741846946,-190.735722,0.00014,2]
[335009497,1723741846956,-151.0,0.00014,2]
[335009499,1723741846965,-388.767853,0.00014,2]
[335009501,1723741846975,-388.767853,0.00014,2]
[335009503,1723741846984,-151.0,0.00014,2]
[335009505,1723741846993,-151.0,0.00014,2]
[335009507,1723741847003,-198.227468,0.00014,2]
[335009509,1723741847012,-289.485609,0.00014,2]
[335009511,1723741847024,-289.485609,0.00014,2]
[335009513,1723741847041,-151.0,0.00014,2]
[335009515,1723741847050,-151.0,0.00014,2]
[335009517,1723741847059,-365.795618,0.00014,2]
[335009519,1723741847069,-575.602219,0.00014,2]
[335009521,1723741847078,-332.32,0.00014021,2]
[335009523,1723741847087,-155.20616996,0.00014025,2]
[335009525,1723741847097,-732.6454915,0.00014053,2]
[335009527,1723741847106,-214.35777161,0.00014053,2]
[335009529,1723741847116,-229.32417258,0.00014053,2]
[335009531,1723741847127,-152.79080492,0.00014109,2]
[335009533,1723741847136,-354.06,0.00014161,2]
[335009535,1723741847145,-316.83560636,0.00014234,2]
[335009537,1723741847154,-823.0,0.00014339,2]
[335009539,1723741847164,-732.6454915,0.00014356,2]
[335009540,1723741847173,-214.35777161,0.00014356,2]
[335009542,1723741847182,-229.32417258,0.00014356,2]
[335009543,1723741847191,-823.0,0.00014373,2]
[335009545,1723741847201,-3636.85,0.00014384,2]
[335009547,1723741847212,-3163.3646561,0.00014544,2]
[335009548,1723741847221,-150.0,0.00014553,2]
[335009549,1723741847232,-150.0,0.00014553,2]
[335009550,1723741847242,-354.06,0.00014586,2]
[335009551,1723741847251,-300.0,0.00014603,2]
[335009552,1723741847262,-300.0,0.00014603,2]
[335009553,1723741847274,-300.0,0.00014603,2]
[335009554,1723741847283,-300.0,0.00014603,2]
[335009555,1723741847293,-300.0,0.00014603,2]
[335009556,1723741847304,-223.64168,0.00014604,2]
[335009557,1723741847315,-223.64168,0.00014604,2]
[335009558,1723741847326,-2067.738,0.00014604,2]
[335009559,1723741847338,-151.0,0.00014604,2]
[335009560,1723741847348,-371.973604,0.00014604,2]
[335009561,1723741847359,-151.0,0.00014604,2]
[335009562,1723741847370,-371.973604,0.00014604,2]
[335009563,1723741847380,-402.271275,0.00014604,2]
[335009564,1723741847390,-151.0,0.00014604,2]
[335009565,1723741847400,-402.271275,0.00014604,2]
[335009566,1723741847410,-151.0,0.00014604,2]
[335009567,1723741847420,-256.37459,0.00014604,2]
[335009568,1723741847431,-256.37459,0.00014604,2]
[335009569,1723741847444,-516.717667,0.00014604,2]
[335009570,1723741847453,-151.0,0.00014604,2]
[335009571,1723741847463,-151.0,0.00014604,2]
[335009572,1723741847473,-516.717667,0.00014604,2]
[335009573,1723741847483,-151.0,0.00014604,2]
[335009574,1723741847492,-151.0,0.00014604,2]
[335009575,1723741847503,-268.295384,0.00014604,2]
[335009576,1723741847514,-151.0,0.00014604,2]
[335009577,1723741847524,-271.023905,0.00014605,2]
[335009578,1723741847533,-151.0,0.00014605,2]
[335009579,1723741847544,-151.0,0.00014605,2]
[335009580,1723741847553,-151.0,0.00014605,2]
[335009581,1723741847563,-254.515709,0.00014605,2]
[335009582,1723741847572,-254.515709,0.00014605,2]
[335009583,1723741847584,-151.0,0.00014605,2]
[335009584,1723741847593,-151.0,0.00014605,2]
[335009585,1723741847604,-153.67036,0.00014605,2]
[335009586,1723741847772,-153.67036,0.00014605,2]
[335009587,1723741847786,-151.0,0.00014605,2]
[335009588,1723741847796,-151.0,0.00014605,2]
[335009589,1723741847806,-159.681171,0.00014605,2]
[335009590,1723741847815,-151.0,0.00014605,2]
[335009591,1723741847827,-159.681171,0.00014605,2]
[335009592,1723741847839,-151.0,0.00014605,2]
[335009593,1723741847851,-185.87082,0.00014605,2]
[335009594,1723741847862,-151.0,0.00014605,2]
[335009595,1723741847873,-151.0,0.00014605,2]
[335009596,1723741847883,-151.0,0.00014605,2]
[335009597,1723741847892,-151.0,0.00014605,2]
[335009598,1723741847902,-151.0,0.00014605,2]
[335009599,1723741847911,-151.0,0.00014605,2]
[335009600,1723741847921,-151.0,0.00014605,2]
[335009601,1723741847931,-151.0,0.00014605,2]
[335009602,1723741847940,-254.69667,0.00014605,2]
[335009603,1723741847950,-283.382914,0.00014605,2]
[335009604,1723741847961,-301.740851,0.00014605,2]
[335009605,1723741847971,-283.382914,0.00014605,2]
[335009606,1723741847980,-301.740851,0.00014605,2]
[335009607,1723741847990,-151.0,0.00014605,2]
[335009608,1723741847999,-151.0,0.00014605,2]
[335009609,1723741848009,-151.0,0.00014605,2]
[335009610,1723741848020,-154.342927,0.00014605,2]
[335009611,1723741848030,-151.0,0.00014605,2]
[335009612,1723741848040,-151.0,0.00014605,2]
[335009613,1723741848049,-223.589713,0.00014605,2]
[335009614,1723741848059,-173.632308,0.00014605,2]
[335009615,1723741848069,-223.589713,0.00014605,2]
[335009616,1723741848079,-173.632308,0.00014605,2]
[335009617,1723741848088,-200.149565,0.00014605,2]
[335009618,1723741848099,-151.0,0.00014605,2]
[335009619,1723741848109,-161.844942,0.00014605,2]
[335009620,1723741848119,-151.0,0.00014605,2]
[335009621,1723741848129,-151.0,0.00014605,2]
[335009622,1723741848139,-161.844942,0.00014605,2]
[335009623,1723741848149,-255.085014,0.00014605,2]
[335009624,1723741848159,-255.085014,0.00014605,2]
[335009625,1723741848170,-151.0,0.00014605,2]
[335009626,1723741848180,-151.0,0.00014605,2]
[335009627,1723741848190,-151.0,0.00014605,2]
[335009628,1723741848199,-151.0,0.00014605,2]
[335009629,1723741848209,-151.0,0.00014605,2]
[335009630,1723741848218,-151.0,0.00014605,2]
[335009631,1723741848228,-155.67,0.00014605,2]
[335009632,1723741848238,-151.0,0.00014605,2]
[335009633,1723741848248,-732.6454915,0.0001466,2]
[335009634,1723741848257,-214.35777161,0.0001466,2]
[335009635,1723741848274,-229.32417258,0.0001466,2]
[335009636,1723741848284,-177.26583069,0.00014681,2]
[335009637,1723741848293,-415.01059966,0.00014753,2]
[335009638,1723741848303,-151.0,0.000148,2]
[335009639,1723741848312,-266.762262,0.000148,2]
[335009640,1723741848322,-156.76,0.00014826,2]
[335009641,1723741848332,-192.7,0.00014921,2]
[335009642,1723741848342,-732.6454915,0.00014964,2]
[335009643,1723741848353,-214.35777161,0.00014964,2]
[335009644,1723741848363,-229.32417258,0.00014964,2]
[335009645,1723741848373,-151.0,0.00014999,2]
[335009646,1723741848384,-151.0,0.00014999,2]
[335009647,1723741848395,-151.0,0.00014999,2]
[335009648,1723741848405,-151.0,0.00014999,2]
[335009649,1723741848415,-151.0,0.00014999,2]
[335009650,1723741848425,-151.0,0.00014999,2]
[335009651,1723741848435,-190.839064,0.00014999,2]
[335009652,1723741848445,-153.67036,0.00014999,2]
[335009653,1723741848455,-153.67036,0.00014999,2]
[335009654,1723741848465,-151.0,0.00014999,2]
[335009655,1723741848475,-151.0,0.00014999,2]
[335009656,1723741848484,-159.681171,0.00014999,2]
[335009657,1723741848493,-151.0,0.00014999,2]
[335009658,1723741848503,-159.681171,0.00014999,2]
[335009659,1723741848513,-151.0,0.00014999,2]
[335009660,1723741848526,-151.0,0.00014999,2]
[335009661,1723741848536,-151.0,0.00014999,2]
[335009662,1723741848547,-151.0,0.00014999,2]
[335009663,1723741848557,-151.0,0.00014999,2]
[335009664,1723741848567,-495.0,0.00015,2]
[335009665,1723741848577,-10017.21956498,0.00015,2]
[335009666,1723741848587,-7483.8650153,0.00015,2]
[335009667,1723741848597,-1184.9773959,0.00015,10]
[335009668,1723741848607,-194.84338543,0.00015,2]
[335009669,1723741848618,-155.0,0.00015,2]
[335009670,1723741848627,-676.76952254,0.00015,2]
[335009671,1723741848637,-151.0,0.00015,2]
[335009672,1723741848647,-151.0,0.00015,2]
[335009673,1723741848656,-151.0,0.00015,2]
[335009674,1723741848666,-151.0,0.00015,2]
[335009675,1723741848677,-151.0,0.00015,2]
[335009676,1723741848686,-150.0,0.00015,2]
[335009677,1723741848696,-1000.0,0.00015004,2]
[335009678,1723741848705,-204.72,0.00015046,2]
[335009679,1723741848715,-3636.85,0.00015068,2]
[335009680,1723741848725,-734.12,0.0001507,2]
[335009681,1723741848735,-500.0,0.000151,2]
[335009682,1723741848745,-400.0,0.00015142,2]
[335009683,1723741848755,-150.0,0.00015143,2]
[335009684,1723741848765,-811.0,0.0001524,2]
[335009685,1723741848787,-150.0,0.0001524,2]
[335009686,1723741848797,-551.0,0.0001524,2]
[335009687,1723741848807,-1895.0,0.0001524,2]
[335009688,1723741848817,-150.0,0.0001524,2]
[335009689,1723741848828,-3292.0,0.0001524,2]
[335009690,1723741848838,-1178.0,0.0001524,2]
[335009691,1723741848848,-247.0,0.0001524,2]
[335009692,1723741848859,-400.15499536,0.00015242,2]
[335009693,1723741848870,-732.6454915,0.00015268,2]
[335009694,1723741848880,-214.35777161,0.00015268,2]
[335009695,1723741848890,-229.32417258,0.00015268,2]
[335009696,1723741848900,-150.0,0.00015311,2]
[335009697,1723741848910,-289.0,0.00015321,2]
[335009698,1723741848920,-21763.0,0.00015321,2]
[335009699,1723741848929,-5135.0,0.00015321,2]
[335009700,1723741848939,-1673.0,0.00015321,2]
[335009701,1723741848949,-5843.0,0.00015321,2]
[335009702,1723741848959,-1205.0,0.00015321,2]
[335009703,1723741848968,-180.74,0.00015398,2]
[335009704,1723741848978,-732.6454915,0.00015572,2]
[335009705,1723741848988,-214.35777161,0.00015572,2]
[335009706,1723741848998,-229.32417258,0.00015572,2]
[335009707,1723741849007,-150.0,0.00015642,2]
[335009708,1723741849019,-150.0,0.00015733,2]
[335009709,1723741849028,-3636.85,0.00015753,2]
[335009710,1723741849038,-1152.0,0.0001576,2]
[335009711,1723741849048,-895.0,0.00015811,2]
[335009712,1723741849058,-167.0,0.00015831,2]
[335009713,1723741849068,-732.6454915,0.00015876,2]
[335009714,1723741849078,-214.35777161,0.00015876,2]
[335009715,1723741849088,-229.32417258,0.00015876,2]
[335009716,1723741849098,-10017.21956498,0.00016,2]
[335009717,1723741849107,-553.54866205,0.00016,50]
[335009718,1723741849117,-700.0,0.00016,2]
[335009719,1723741849127,-732.6454915,0.0001618,2]
[335009720,1723741849137,-214.35777161,0.0001618,2]
[335009721,1723741849147,-229.32417258,0.0001618,2]
[335009722,1723741849157,-500.0,0.0001628,2]
[335009723,1723741849167,-1000.0,0.0001628,2]
[335009724,1723741849177,-1200.0,0.0001628,2]
[335009725,1723741849187,-803.0,0.000163,3]
[335009726,1723741849196,-3832.0,0.000163,3]
[335009727,1723741849206,-150.0,0.00016323,2]
[335009728,1723741849215,-150.0,0.00016323,2]
[335009729,1723741849226,-3636.85,0.00016438,2]
[335009730,1723741849236,-7791.33,0.00016438,2]
[335009731,1723741849246,-732.6454915,0.00016483,2]
[335009732,1723741849256,-214.35777161,0.00016483,2]
[335009733,1723741849266,-229.32417258,0.00016483,2]
[335009734,1723741849282,-274.314366,0.00016681,2]
[335009735,1723741849293,-274.314366,0.00016681,2]
[335009736,1723741849303,-151.0,0.00016681,2]
[335009737,1723741849313,-151.0,0.00016681,2]
[335009738,1723741849323,-151.0,0.00016681,2]
[335009739,1723741849334,-151.0,0.00016681,2]
[335009740,1723741849345,-151.0,0.00016681,2]
[335009741,1723741849357,-150.0,0.00016681,2]
[335009742,1723741849367,-150.0,0.00016681,2]
[335009743,1723741849378,-150.0,0.00016681,2]
[335009744,1723741849388,-150.0,0.00016681,2]
[335009745,1723741849398,-150.0,0.00016681,2]
[335009746,1723741849408,-150.0,0.00016681,2]
[335009747,1723741849418,-150.0,0.00016681,2]
[335009748,1723741849427,-150.0,0.00016681,2]
[335009749,1723741849437,-150.0,0.00016681,2]
[335009750,1723741849447,-1543.0,0.00016681,2]
[335009751,1723741849456,-1257.0,0.00016681,2]
[335009752,1723741849466,-1924.0,0.00016681,2]
[335009753,1723741849476,-622.0,0.00016681,2]
[335009754,1723741849486,-1137.0,0.00016681,2]
[335009755,1723741849496,-556.0,0.00016681,2]
[335009756,1723741849505,-446.0,0.00016681,2]
[335009757,1723741849515,-732.6454915,0.00016787,2]
[335009758,1723741849528,-214.35777161,0.00016787,2]
[335009759,1723741849538,-229.32417258,0.00016787,2]
[335009760,1723741849547,-426.49,0.00016795,2]
[335009761,1723741849557,-531.12,0.00016795,2]
[335009762,1723741849567,-426.49,0.00016795,2]
[335009763,1723741849576,-426.25,0.00016795,2]
[335009764,1723741849587,-151.0,0.00016856,2]
[335009765,1723741849596,-151.0,0.00016856,2]
[335009766,1723741849606,-151.0,0.00016856,2]
[335009767,1723741849616,-151.0,0.00016856,2]
[335009768,1723741849626,-151.0,0.00016856,2]
[335009769,1723741849636,-150.0,0.00016912,2]
[335009770,1723741849646,-10017.21956498,0.00017,2]
[335009771,1723741849656,-1500.0,0.00017,2]
[335009772,1723741849666,-1500.0,0.00017,2]
[335009773,1723741849676,-1500.0,0.00017,2]
[335009774,1723741849685,-1500.0,0.00017,2]
[335009775,1723741849695,-1500.0,0.00017,2]
[335009776,1723741849705,-1500.0,0.00017,2]
[335009777,1723741849715,-1500.0,0.00017,2]
[335009778,1723741849726,-1500.0,0.00017,2]
[335009779,1723741849736,-1754.88,0.00017,2]
[335009780,1723741849745,-1500.0,0.00017,2]
[335009781,1723741849755,-151.0,0.00017,2]
[335009782,1723741849764,-151.0,0.00017,2]
[335009783,1723741849779,-223.64168,0.00017,2]
[335009784,1723741849794,-223.64168,0.00017,2]
[335009785,1723741849803,-2067.738,0.00017,2]
[335009786,1723741849813,-151.0,0.00017,2]
[335009787,1723741849823,-371.973604,0.00017,2]
[335009788,1723741849833,-371.973604,0.00017,2]
[335009789,1723741849843,-402.271275,0.00017,2]
[335009790,1723741849852,-402.271275,0.00017,2]
[335009791,1723741849864,-151.0,0.00017,2]
[335009792,1723741849874,-256.37459,0.00017,2]
[335009793,1723741849884,-256.37459,0.00017,2]
[335009794,1723741849894,-516.717667,0.00017,2]
[335009795,1723741849904,-274.67783,0.00017,2]
[335009796,1723741849913,-151.0,0.00017,2]
[335009797,1723741849923,-516.717667,0.00017,2]
[335009798,1723741849933,-151.0,0.00017,2]
[335009799,1723741849943,-151.0,0.00017,2]
[335009800,1723741849953,-151.0,0.00017,2]
[335009801,1723741849962,-151.0,0.00017,2]
[335009802,1723741849972,-388.767853,0.00017,2]
[335009803,1723741849981,-388.767853,0.00017,2]
[335009804,1723741849993,-151.0,0.00017,2]
[335009805,1723741850002,-289.485609,0.00017,2]
[335009806,1723741850012,-289.485609,0.00017,2]
[335009807,1723741850027,-151.0,0.00017,2]
[335009808,1723741850037,-365.795618,0.00017,2]
[335009809,1723741850046,-575.602219,0.00017,2]
[335009810,1723741850056,-732.6454915,0.00017091,2]
[335009811,1723741850066,-214.35777161,0.00017091,2]
[335009812,1723741850076,-229.32417258,0.00017091,2]
[335009813,1723741850086,-152.79080492,0.00017318,2]
[335009814,1723741850096,-1613.0,0.00017322,2]
[335009815,1723741850106,-734.12,0.00017334,2]
[335009816,1723741850116,-2100.0,0.00017376,2]
[335009817,1723741850126,-732.6454915,0.00017395,2]
[335009818,1723741850136,-214.35777161,0.00017395,2]
[335009819,1723741850146,-229.32417258,0.00017395,2]
[335009820,1723741850156,-150.0,0.00017502,2]
[335009821,1723741850166,-426.49,0.00017616,2]
[335009822,1723741850176,-426.49,0.00017616,2]
[335009823,1723741850186,-794.0,0.00017649,2]
[335009824,1723741850195,-794.0,0.00017649,2]
[335009825,1723741850205,-500.0,0.0001765,2]
[335009826,1723741850214,-1000.0,0.0001765,2]
[335009827,1723741850224,-1200.0,0.0001765,2]
[335009828,1723741850286,-164.071332,0.00017687,2]
[335009829,1723741850297,-223.589713,0.00017687,2]
[335009830,1723741850307,-173.632308,0.00017687,2]
[335009831,1723741850316,-223.589713,0.00017687,2]
[335009832,1723741850326,-173.632308,0.00017687,2]
[335009833,1723741850336,-151.0,0.00017687,2]
[335009834,1723741850346,-161.844942,0.00017687,2]
[335009835,1723741850356,-151.0,0.00017687,2]
[335009836,1723741850365,-151.301295,0.00017687,2]
[335009837,1723741850374,-161.844942,0.00017687,2]
[335009838,1723741850384,-255.085014,0.00017687,2]
[335009839,1723741850394,-255.085014,0.00017687,2]
[335009840,1723741850404,-151.0,0.00017687,2]
[335009841,1723741850414,-151.0,0.00017687,2]
[335009842,1723741850423,-151.0,0.00017687,2]
[335009843,1723741850433,-270.58108,0.00017687,2]
[335009844,1723741850443,-151.0,0.00017687,2]
[335009845,1723741850453,-732.6454915,0.00017699,2]
[335009846,1723741850463,-214.35777161,0.00017699,2]
[335009847,1723741850472,-229.32417258,0.00017699,2]
[335009848,1723741850482,-150.0,0.00017956,2]
[335009849,1723741850492,-10017.21956498,0.00018,2]
[335009850,1723741850501,-151.0,0.00018,2]
[335009851,1723741850510,-151.0,0.00018,2]
[335009852,1723741850524,-154.265322,0.00018,2]
[335009853,1723741850533,-254.515709,0.00018,2]
[335009854,1723741850543,-254.515709,0.00018,2]
[335009855,1723741850552,-151.0,0.00018,2]
[335009856,1723741850562,-151.0,0.00018,2]
[335009857,1723741850571,-187.74496,0.00018,2]
[335009858,1723741850580,-153.67036,0.00018,2]
[335009859,1723741850590,-153.67036,0.00018,2]
[335009860,1723741850599,-151.0,0.00018,2]
[335009861,1723741850608,-151.0,0.00018,2]
[335009862,1723741850618,-159.681171,0.00018,2]
[335009863,1723741850627,-151.0,0.00018,2]
[335009864,1723741850637,-159.681171,0.00018,2]
[335009865,1723741850646,-283.382914,0.00018,2]
[335009866,1723741850655,-283.382914,0.00018,2]